[Event "Titled Tuesday Blitz July 13 2021"]
[White "Holt, Conrad"]
[Black "Howell, David W L"]
[WhiteFideId "2034387"]
[BlackFideId "410608"]
[WhiteElo "2586"]
[BlackElo "2643"]
[Result "0-1"]
[Round "11"]
[TimeControl "180+1"]
[Date "2021.07.13"]
[WhiteClock "0:00:02"]
[BlackClock "0:00:09"]

1. d4 {[%clk 0:03:00]}  d5 {[%clk 0:02:58]} 2. c4 {[%clk 0:03:01]}  e6 {[%clk 0:02:57]} 3. Nc3 {[%clk 0:03:01]}  a6 {[%clk 0:02:53]} 4. cxd5 {[%clk 0:03:00]}  exd5 {[%clk 0:02:53]} 5. Bf4 {[%clk 0:03:00]}  c6 {[%clk 0:02:51]} 6. e3 {[%clk 0:02:59]}  Bd6 {[%clk 0:02:52]} 7. Bg3 {[%clk 0:02:56]}  Nf6 {[%clk 0:02:50]} 8. Bd3 {[%clk 0:02:55]}  O-O {[%clk 0:02:51]} 9. Nf3 {[%clk 0:02:50]}  Re8 {[%clk 0:02:49]} 10. Qc2 {[%clk 0:02:49]}  a5 {[%clk 0:02:36]} 11. Ne5 {[%clk 0:02:46]}  Na6 {[%clk 0:02:35]} 12. a3 {[%clk 0:02:43]}  Nc7 {[%clk 0:02:30]} 13. Bh4 {[%clk 0:02:44]}  Bxe5 {[%clk 0:02:13]} 14. dxe5 {[%clk 0:02:43]}  Rxe5 {[%clk 0:02:14]} 15. Bxh7+ {[%clk 0:02:43]}  Kh8 {[%clk 0:02:11]} 16. Bd3 {[%clk 0:02:31]}  Rh5 {[%clk 0:02:11]} 17. Bg3 {[%clk 0:02:26]}  Ne6 {[%clk 0:02:11]} 18. Be2 {[%clk 0:02:23]}  Rh6 {[%clk 0:02:08]} 19. Rd1 {[%clk 0:02:21]}  Qe7 {[%clk 0:02:08]} 20. e4 {[%clk 0:02:11]}  dxe4 {[%clk 0:01:50]} 21. Bd6 {[%clk 0:02:01]}  Qe8 {[%clk 0:01:47]} 22. Nxe4 {[%clk 0:02:01]}  Nxe4 {[%clk 0:01:43]} 23. Qxe4 {[%clk 0:02:00]}  Bd7 {[%clk 0:01:44]} 24. O-O {[%clk 0:01:58]}  Ng5 {[%clk 0:01:37]} 25. Qxe8+ {[%clk 0:01:57]}  Rxe8 {[%clk 0:01:37]} 26. Bc4 {[%clk 0:01:57]}  Be6 {[%clk 0:01:34]} 27. Rfe1 {[%clk 0:01:55]}  Rd8 {[%clk 0:01:26]} 28. Bf1 {[%clk 0:01:51]}  Bd5 {[%clk 0:01:22]} 29. Bg3 {[%clk 0:01:42]}  a4 {[%clk 0:01:08]} 30. Rd4 {[%clk 0:01:35]}  b5 {[%clk 0:01:03]} 31. h4 {[%clk 0:01:23]}  Ne6 {[%clk 0:01:02]} 32. Rd2 {[%clk 0:01:22]}  Kg8 {[%clk 0:01:00]} 33. Re5 {[%clk 0:01:10]}  Nc5 {[%clk 0:00:43]} 34. Bxb5 {[%clk 0:01:03]}  f6 {[%clk 0:00:31]} 35. Rf5 {[%clk 0:00:55]}  g6 {[%clk 0:00:31]} 36. Bxc6 {[%clk 0:00:26]}  gxf5 {[%clk 0:00:28]} 37. Rxd5 {[%clk 0:00:16]}  Rxd5 {[%clk 0:00:29]} 38. Bxd5+ {[%clk 0:00:17]}  Kg7 {[%clk 0:00:29]} 39. Bd6 {[%clk 0:00:16]}  Nd3 {[%clk 0:00:27]} 40. g3 {[%clk 0:00:14]}  Nxb2 {[%clk 0:00:26]} 41. Bc6 {[%clk 0:00:14]}  Rh8 {[%clk 0:00:26]} 42. Kg2 {[%clk 0:00:13]}  Rc8 {[%clk 0:00:26]} 43. Bb7 {[%clk 0:00:11]}  Rc2 {[%clk 0:00:22]} 44. Kf3 {[%clk 0:00:08]}  Nd1 {[%clk 0:00:20]} 45. g4 {[%clk 0:00:03]}  Rxf2+ {[%clk 0:00:18]} 46. Kg3 {[%clk 0:00:04]}  fxg4 {[%clk 0:00:18]} 47. Kxg4 {[%clk 0:00:04]}  Ne3+ {[%clk 0:00:18]} 48. Kg3 {[%clk 0:00:03]}  Rb2 {[%clk 0:00:16]} 49. Be4 {[%clk 0:00:03]}  Rb3 {[%clk 0:00:14]} 50. Kf4 {[%clk 0:00:03]}  Nc4 {[%clk 0:00:14]} 51. Bc5 {[%clk 0:00:03]}  Nxa3 {[%clk 0:00:15]} 52. Bd5 {[%clk 0:00:01]}  Rd3 {[%clk 0:00:13]} 53. Ke4 {[%clk 0:00:01]}  Rh3 {[%clk 0:00:12]} 54. Kd4 {[%clk 0:00:01]}  Rxh4+ {[%clk 0:00:12]} 55. Kd3 {[%clk 0:00:02]}  Nb5 {[%clk 0:00:12]} 56. Bc4 {[%clk 0:00:02]}  a3 {[%clk 0:00:09]} 0-1


[Site "https://www.chess.com"]

[Event "Titled Tuesday Blitz July 13 2021"]
[White "Horak, Martin"]
[Black "Xie, Bryan"]
[WhiteFideId "367095"]
[BlackFideId "30941296"]
[WhiteElo "1997"]
[BlackElo "1899"]
[Result "1-0"]
[Round "11"]
[TimeControl "180+1"]
[Date "2021.07.13"]
[WhiteClock "0:00:18"]
[BlackClock "0:00:05"]

1. e4 {[%clk 0:03:00]}  c5 {[%clk 0:02:58]} 2. Nf3 {[%clk 0:02:59]}  Nc6 {[%clk 0:02:59]} 3. d4 {[%clk 0:02:58]}  cxd4 {[%clk 0:02:59]} 4. Nxd4 {[%clk 0:02:58]}  e6 {[%clk 0:03:00]} 5. Nc3 {[%clk 0:02:58]}  Qc7 {[%clk 0:02:59]} 6. Nxc6 {[%clk 0:02:34]}  bxc6 {[%clk 0:02:52]} 7. Bd3 {[%clk 0:02:34]}  Nf6 {[%clk 0:02:33]} 8. O-O {[%clk 0:02:33]}  d5 {[%clk 0:02:21]} 9. Qe2 {[%clk 0:02:32]}  Be7 {[%clk 0:01:55]} 10. Re1 {[%clk 0:02:25]}  d4 {[%clk 0:01:46]} 11. Nd1 {[%clk 0:02:21]}  e5 {[%clk 0:01:45]} 12. b3 {[%clk 0:02:18]}  O-O {[%clk 0:01:39]} 13. Nb2 {[%clk 0:02:12]}  Bb4 {[%clk 0:01:32]} 14. Bd2 {[%clk 0:02:11]}  Bxd2 {[%clk 0:01:32]} 15. Qxd2 {[%clk 0:02:12]}  Be6 {[%clk 0:01:30]} 16. c3 {[%clk 0:01:34]}  c5 {[%clk 0:01:12]} 17. cxd4 {[%clk 0:01:31]}  cxd4 {[%clk 0:01:13]} 18. Rac1 {[%clk 0:01:26]}  Qb7 {[%clk 0:01:07]} 19. f4 {[%clk 0:01:10]}  exf4 {[%clk 0:00:32]} 20. Qxf4 {[%clk 0:01:10]}  Rac8 {[%clk 0:00:29]} 21. e5 {[%clk 0:01:04]}  Nd5 {[%clk 0:00:13]} 22. Qxd4 {[%clk 0:01:03]}  Rfd8 {[%clk 0:00:13]} 23. Nc4 {[%clk 0:00:33]}  Nb4 {[%clk 0:00:12]} 24. Nd6 {[%clk 0:00:27]}  Rxc1 {[%clk 0:00:09]} 25. Rxc1 {[%clk 0:00:22]}  Qa8 {[%clk 0:00:09]} 26. Qxb4 {[%clk 0:00:20]}  Bd5 {[%clk 0:00:09]} 27. Be4 {[%clk 0:00:19]}  Bxe4 {[%clk 0:00:09]} 28. Qxe4 {[%clk 0:00:18]}  Qb8 {[%clk 0:00:07]} 29. Qb7 {[%clk 0:00:17]}  Qxb7 {[%clk 0:00:05]} 30. Nxb7 {[%clk 0:00:18]}  Rb8 {[%clk 0:00:05]} 31. Nd6 {[%clk 0:00:18]} 1-0


[Site "https://www.chess.com"]

[Event "Titled Tuesday Blitz July 13 2021"]
[White "Ibrahimli, Murad"]
[Black "Borsuk, Konstantin"]
[WhiteFideId "13410229"]
[BlackFideId "14113406"]
[WhiteElo "2109"]
[BlackElo "2363"]
[Result "0-1"]
[Round "11"]
[TimeControl "180+1"]
[Date "2021.07.13"]
[WhiteClock "0:00:22"]
[BlackClock "0:00:30"]

1. e4 {[%clk 0:03:00]}  e6 {[%clk 0:03:00]} 2. d4 {[%clk 0:03:00]}  d5 {[%clk 0:03:00]} 3. Nc3 {[%clk 0:02:58]}  Bb4 {[%clk 0:03:00]} 4. Ne2 {[%clk 0:02:57]}  Nc6 {[%clk 0:02:56]} 5. a3 {[%clk 0:02:50]}  Ba5 {[%clk 0:02:56]} 6. exd5 {[%clk 0:02:40]}  exd5 {[%clk 0:02:55]} 7. Bf4 {[%clk 0:02:36]}  Nge7 {[%clk 0:02:49]} 8. Qd2 {[%clk 0:02:34]}  O-O {[%clk 0:02:46]} 9. O-O-O {[%clk 0:02:30]}  b5 {[%clk 0:02:39]} 10. h4 {[%clk 0:02:17]}  b4 {[%clk 0:02:32]} 11. axb4 {[%clk 0:02:16]}  Bxb4 {[%clk 0:02:32]} 12. h5 {[%clk 0:02:15]}  Na5 {[%clk 0:02:27]} 13. h6 {[%clk 0:02:14]}  g6 {[%clk 0:02:19]} 14. Ng3 {[%clk 0:01:53]}  c6 {[%clk 0:02:19]} 15. Be5 {[%clk 0:01:46]}  f6 {[%clk 0:02:17]} 16. Bf4 {[%clk 0:01:46]}  Nc4 {[%clk 0:02:07]} 17. Bxc4 {[%clk 0:01:39]}  dxc4 {[%clk 0:02:08]} 18. Qe3 {[%clk 0:01:38]}  a5 {[%clk 0:01:46]} 19. Nge4 {[%clk 0:01:35]}  a4 {[%clk 0:01:43]} 20. Na2 {[%clk 0:01:17]}  Nd5 {[%clk 0:01:38]} 21. Qf3 {[%clk 0:01:17]}  Be7 {[%clk 0:00:54]} 22. Nc5 {[%clk 0:01:15]}  a3 {[%clk 0:00:53]} 23. b3 {[%clk 0:01:14]}  cxb3 {[%clk 0:00:50]} 24. cxb3 {[%clk 0:01:14]}  Qb6 {[%clk 0:00:45]} 25. Bd2 {[%clk 0:00:21]}  Bxc5 {[%clk 0:00:31]} 26. dxc5 {[%clk 0:00:21]}  Qxc5+ {[%clk 0:00:31]} 27. Kb1 {[%clk 0:00:22]}  Bf5+ {[%clk 0:00:31]} 28. Ka1 {[%clk 0:00:23]}  Qc2 {[%clk 0:00:31]} 29. Bc1 {[%clk 0:00:22]}  Qb1# {[%clk 0:00:30]} 0-1


[Site "https://www.chess.com"]

[Event "Titled Tuesday Blitz July 13 2021"]
[White "Jodorcovsky Werjivker, Paulo"]
[Black "Sadovsky, Artem"]
[WhiteFideId "3700305"]
[BlackFideId "4155840"]
[WhiteElo "2142"]
[BlackElo "2442"]
[Result "0-1"]
[Round "11"]
[TimeControl "180+1"]
[Date "2021.07.13"]
[WhiteClock "0:00:15"]
[BlackClock "0:01:19"]

1. e4 {[%clk 0:03:00]}  d5 {[%clk 0:02:53]} 2. exd5 {[%clk 0:02:58]}  Nf6 {[%clk 0:02:47]} 3. Nf3 {[%clk 0:02:55]}  Nxd5 {[%clk 0:02:44]} 4. d4 {[%clk 0:02:53]}  Bg4 {[%clk 0:02:43]} 5. Be2 {[%clk 0:02:51]}  e6 {[%clk 0:02:43]} 6. O-O {[%clk 0:02:32]}  Bd6 {[%clk 0:02:41]} 7. c4 {[%clk 0:02:29]}  Nf4 {[%clk 0:02:40]} 8. Bxf4 {[%clk 0:02:26]}  Bxf4 {[%clk 0:02:40]} 9. Nc3 {[%clk 0:02:22]}  c6 {[%clk 0:02:39]} 10. h3 {[%clk 0:02:20]}  Bh5 {[%clk 0:02:31]} 11. Ne4 {[%clk 0:02:12]}  O-O {[%clk 0:02:30]} 12. b4 {[%clk 0:01:51]}  Nd7 {[%clk 0:02:29]} 13. Nfd2 {[%clk 0:01:36]}  Bg6 {[%clk 0:02:23]} 14. Bf3 {[%clk 0:01:10]}  Nf6 {[%clk 0:02:12]} 15. Nxf6+ {[%clk 0:01:08]}  Qxf6 {[%clk 0:02:09]} 16. Ne4 {[%clk 0:01:08]}  Bxe4 {[%clk 0:01:59]} 17. Bxe4 {[%clk 0:01:09]}  Rfd8 {[%clk 0:01:58]} 18. Qh5 {[%clk 0:00:41]}  g6 {[%clk 0:01:52]} 19. Qf3 {[%clk 0:00:40]}  Rxd4 {[%clk 0:01:45]} 20. Rad1 {[%clk 0:00:28]}  Rad8 {[%clk 0:01:43]} 21. Rxd4 {[%clk 0:00:26]}  Rxd4 {[%clk 0:01:44]} 22. Rd1 {[%clk 0:00:27]}  Bh2+ {[%clk 0:01:24]} 23. Kxh2 {[%clk 0:00:22]}  Qe5+ {[%clk 0:01:22]} 24. Qg3 {[%clk 0:00:15]}  Qxg3+ {[%clk 0:01:19]} 0-1


[Site "https://www.chess.com"]

[Event "Titled Tuesday Blitz July 13 2021"]
[White "Kretov, Evgenij"]
[Black "Arabidze, Meri"]
[WhiteFideId "4167821"]
[BlackFideId "13604040"]
[WhiteElo "2400"]
[BlackElo "2432"]
[Result "1-0"]
[Round "11"]
[TimeControl "180+1"]
[Date "2021.07.13"]
[WhiteClock "0:00:22"]
[BlackClock "0:00:02"]

1. d4 {[%clk 0:03:00]}  d5 {[%clk 0:03:00]} 2. c4 {[%clk 0:03:01]}  e6 {[%clk 0:03:00]} 3. Nc3 {[%clk 0:03:01]}  Nf6 {[%clk 0:03:00]} 4. cxd5 {[%clk 0:03:01]}  exd5 {[%clk 0:03:01]} 5. Bg5 {[%clk 0:03:00]}  Be7 {[%clk 0:03:01]} 6. e3 {[%clk 0:03:01]}  c6 {[%clk 0:03:02]} 7. Bd3 {[%clk 0:03:01]}  Nbd7 {[%clk 0:03:02]} 8. Qc2 {[%clk 0:03:01]}  Nf8 {[%clk 0:03:02]} 9. Nf3 {[%clk 0:03:01]}  Ne6 {[%clk 0:03:02]} 10. Bh4 {[%clk 0:03:01]}  g6 {[%clk 0:03:02]} 11. O-O {[%clk 0:03:00]}  O-O {[%clk 0:03:03]} 12. Rab1 {[%clk 0:03:00]}  Ng7 {[%clk 0:03:03]} 13. b4 {[%clk 0:03:00]}  a6 {[%clk 0:03:03]} 14. a4 {[%clk 0:03:00]}  Bf5 {[%clk 0:03:04]} 15. b5 {[%clk 0:03:00]}  axb5 {[%clk 0:03:02]} 16. axb5 {[%clk 0:03:00]}  Bxd3 {[%clk 0:03:01]} 17. Qxd3 {[%clk 0:03:00]}  Nf5 {[%clk 0:03:01]} 18. Bxf6 {[%clk 0:02:59]}  Bxf6 {[%clk 0:03:02]} 19. bxc6 {[%clk 0:02:59]}  bxc6 {[%clk 0:03:03]} 20. Ra1 {[%clk 0:02:54]}  Nd6 {[%clk 0:02:58]} 21. Na4 {[%clk 0:02:49]}  Ra5 {[%clk 0:02:25]} 22. Nc5 {[%clk 0:02:35]}  Rxc5 {[%clk 0:02:24]} 23. dxc5 {[%clk 0:02:35]}  Bxa1 {[%clk 0:02:24]} 24. Rxa1 {[%clk 0:02:32]}  Ne4 {[%clk 0:02:21]} 25. Nd4 {[%clk 0:02:22]}  Nxc5 {[%clk 0:01:26]} 26. Qc2 {[%clk 0:02:20]}  Qd6 {[%clk 0:01:24]} 27. Rc1 {[%clk 0:02:16]}  Ra8 {[%clk 0:01:22]} 28. g3 {[%clk 0:01:51]}  Ne4 {[%clk 0:01:22]} 29. Nxc6 {[%clk 0:01:42]}  h5 {[%clk 0:01:21]} 30. Nd4 {[%clk 0:01:37]}  h4 {[%clk 0:01:19]} 31. Kg2 {[%clk 0:01:37]}  Qd7 {[%clk 0:01:14]} 32. Qe2 {[%clk 0:01:30]}  h3+ {[%clk 0:01:14]} 33. Kg1 {[%clk 0:01:30]}  Qa7 {[%clk 0:00:59]} 34. Qf1 {[%clk 0:01:26]}  Qd7 {[%clk 0:00:54]} 35. Qe2 {[%clk 0:01:20]}  Ra3 {[%clk 0:00:49]} 36. Qb2 {[%clk 0:01:06]}  Ra8 {[%clk 0:00:33]} 37. Qb3 {[%clk 0:00:54]}  Rc8 {[%clk 0:00:29]} 38. Ra1 {[%clk 0:00:47]}  Qd6 {[%clk 0:00:29]} 39. Qb2 {[%clk 0:00:44]}  Qf6 {[%clk 0:00:29]} 40. f3 {[%clk 0:00:36]}  Ng5 {[%clk 0:00:28]} 41. Rf1 {[%clk 0:00:35]}  Re8 {[%clk 0:00:25]} 42. Qd2 {[%clk 0:00:35]}  Qe7 {[%clk 0:00:19]} 43. Kf2 {[%clk 0:00:33]}  Ne6 {[%clk 0:00:16]} 44. Rd1 {[%clk 0:00:26]}  Nxd4 {[%clk 0:00:15]} 45. Qxd4 {[%clk 0:00:26]}  Ra8 {[%clk 0:00:14]} 46. Qxd5 {[%clk 0:00:24]}  Ra3 {[%clk 0:00:10]} 47. Qd4 {[%clk 0:00:23]}  Ra2+ {[%clk 0:00:10]} 48. Rd2 {[%clk 0:00:23]}  Rxd2+ {[%clk 0:00:07]} 49. Qxd2 {[%clk 0:00:23]}  Qa3 {[%clk 0:00:07]} 50. g4 {[%clk 0:00:21]}  Qa8 {[%clk 0:00:04]} 51. Kg3 {[%clk 0:00:21]}  Kh7 {[%clk 0:00:04]} 52. Qf2 {[%clk 0:00:21]}  Qb8+ {[%clk 0:00:04]} 53. Kxh3 {[%clk 0:00:21]}  f5 {[%clk 0:00:04]} 54. gxf5 {[%clk 0:00:20]}  gxf5 {[%clk 0:00:05]} 55. Qh4+ {[%clk 0:00:20]}  Kg6 {[%clk 0:00:05]} 56. Qg3+ {[%clk 0:00:21]}  Qxg3+ {[%clk 0:00:02]} 57. Kxg3 {[%clk 0:00:21]}  Kg5 {[%clk 0:00:02]} 58. h4+ {[%clk 0:00:21]}  Kh5 {[%clk 0:00:02]} 59. Kf4 {[%clk 0:00:22]} 1-0


[Site "https://www.chess.com"]

[Event "Titled Tuesday Blitz July 13 2021"]
[White "Markidis, Konstantinos"]
[Black "Langner, Ladislav"]
[WhiteFideId "4203500"]
[BlackFideId "300403"]
[WhiteElo "2304"]
[BlackElo "2346"]
[Result "1-0"]
[Round "11"]
[TimeControl "180+1"]
[Date "2021.07.13"]
[WhiteClock "0:01:31"]
[BlackClock "0:00:08"]

1. e4 {[%clk 0:03:00]}  c5 {[%clk 0:03:00]} 2. Nf3 {[%clk 0:03:00]}  e6 {[%clk 0:03:00]} 3. g3 {[%clk 0:03:00]}  d5 {[%clk 0:02:58]} 4. exd5 {[%clk 0:03:00]}  exd5 {[%clk 0:02:57]} 5. d4 {[%clk 0:03:00]}  Bg4 {[%clk 0:02:55]} 6. Bg2 {[%clk 0:02:57]}  Nc6 {[%clk 0:02:55]} 7. O-O {[%clk 0:02:58]}  Nxd4 {[%clk 0:02:52]} 8. Qe1+ {[%clk 0:02:56]}  Be7 {[%clk 0:02:43]} 9. Nxd4 {[%clk 0:02:55]}  cxd4 {[%clk 0:02:43]} 10. Qe5 {[%clk 0:02:51]}  Nf6 {[%clk 0:02:34]} 11. Qxd4 {[%clk 0:02:51]}  O-O {[%clk 0:02:31]} 12. Nc3 {[%clk 0:02:51]}  Rc8 {[%clk 0:02:26]} 13. Nxd5 {[%clk 0:02:32]}  Nxd5 {[%clk 0:02:10]} 14. Qxg4 {[%clk 0:02:32]}  Rxc2 {[%clk 0:01:58]} 15. Qd4 {[%clk 0:02:18]}  Nb4 {[%clk 0:01:35]} 16. Qxa7 {[%clk 0:02:11]}  Bc5 {[%clk 0:01:20]} 17. Qxb7 {[%clk 0:02:11]}  Rxf2 {[%clk 0:00:52]} 18. Rxf2 {[%clk 0:01:40]}  Nd3 {[%clk 0:00:51]} 19. h3 {[%clk 0:01:37]}  Bxf2+ {[%clk 0:00:40]} 20. Kh2 {[%clk 0:01:37]}  Qd6 {[%clk 0:00:36]} 21. Qf3 {[%clk 0:01:36]}  f5 {[%clk 0:00:19]} 22. Bf4 {[%clk 0:01:34]}  Nxf4 {[%clk 0:00:12]} 23. gxf4 {[%clk 0:01:35]}  Bd4 {[%clk 0:00:08]} 24. Rd1 {[%clk 0:01:31]} 1-0


[Site "https://www.chess.com"]

[Event "Titled Tuesday Blitz July 13 2021"]
[White "Moon_stone123"]
[Black "Maevsky, Nikolay"]
[BlackFideId "4198220"]
[WhiteElo "2432"]
[BlackElo "2213"]
[Result "0-1"]
[Round "11"]
[TimeControl "180+1"]
[Date "2021.07.13"]
[WhiteClock "0:01:29"]
[BlackClock "0:01:03"]

1. Nf3 {[%clk 0:03:00]}  g6 {[%clk 0:02:57]} 2. d4 {[%clk 0:03:00]}  Bg7 {[%clk 0:02:57]} 3. e4 {[%clk 0:03:00]}  d6 {[%clk 0:02:57]} 4. Bc4 {[%clk 0:03:00]}  a6 {[%clk 0:02:56]} 5. a4 {[%clk 0:02:59]}  e6 {[%clk 0:02:56]} 6. O-O {[%clk 0:02:57]}  Ne7 {[%clk 0:02:55]} 7. Qe2 {[%clk 0:02:57]}  Nd7 {[%clk 0:02:54]} 8. c3 {[%clk 0:02:56]}  b6 {[%clk 0:02:52]} 9. Ne1 {[%clk 0:02:55]}  Bb7 {[%clk 0:02:51]} 10. f4 {[%clk 0:02:55]}  Bxe4 {[%clk 0:02:45]} 11. Qxe4 {[%clk 0:02:50]}  d5 {[%clk 0:02:45]} 12. Qe2 {[%clk 0:02:51]}  dxc4 {[%clk 0:02:45]} 13. Qxc4 {[%clk 0:02:52]}  O-O {[%clk 0:02:42]} 14. Nd3 {[%clk 0:02:50]}  Nd5 {[%clk 0:02:39]} 15. Ne5 {[%clk 0:02:47]}  Nxe5 {[%clk 0:02:29]} 16. fxe5 {[%clk 0:02:46]}  c5 {[%clk 0:02:26]} 17. Bf4 {[%clk 0:02:31]}  cxd4 {[%clk 0:02:24]} 18. cxd4 {[%clk 0:02:30]}  Rc8 {[%clk 0:02:15]} 19. Qxa6 {[%clk 0:02:29]}  Nxf4 {[%clk 0:02:13]} 20. Rxf4 {[%clk 0:02:29]}  Rc1+ {[%clk 0:02:06]} 21. Kf2 {[%clk 0:02:18]}  Rc2+ {[%clk 0:01:34]} 22. Kg3 {[%clk 0:02:09]}  Qg5+ {[%clk 0:01:25]} 23. Rg4 {[%clk 0:01:49]}  Qe3+ {[%clk 0:01:24]} 24. Kh4 {[%clk 0:01:49]}  h5 {[%clk 0:01:19]} 25. Ra3 {[%clk 0:01:44]}  Qg1 {[%clk 0:01:14]} 26. Rgg3 {[%clk 0:01:37]}  Qxh2+ {[%clk 0:01:10]} 27. Kg5 {[%clk 0:01:37]}  Kh7 {[%clk 0:01:06]} 28. Raf3 {[%clk 0:01:29]}  Bh6+ {[%clk 0:01:03]} 29. Kf6 {[%clk 0:01:29]}  Qh4+ {[%clk 0:01:03]} 0-1


[Site "https://www.chess.com"]

[Event "Titled Tuesday Blitz July 13 2021"]
[White "Nakamura, Hikaru"]
[Black "Martinez Alcantara, Jose Eduardo"]
[WhiteFideId "2016192"]
[BlackFideId "3805662"]
[WhiteElo "2900"]
[BlackElo "2690"]
[Result "1-0"]
[Round "11"]
[TimeControl "180+1"]
[Date "2021.07.13"]
[WhiteClock "0:00:16"]
[BlackClock "0:00:01"]

1. e4 {[%clk 0:03:00]}  c5 {[%clk 0:02:59]} 2. Nf3 {[%clk 0:03:01]}  d6 {[%clk 0:02:59]} 3. d4 {[%clk 0:03:01]}  cxd4 {[%clk 0:03:00]} 4. Nxd4 {[%clk 0:03:00]}  Nf6 {[%clk 0:03:00]} 5. Nc3 {[%clk 0:03:01]}  a6 {[%clk 0:03:01]} 6. h3 {[%clk 0:03:01]}  e5 {[%clk 0:03:00]} 7. Nde2 {[%clk 0:03:00]}  h5 {[%clk 0:03:00]} 8. g3 {[%clk 0:03:00]}  Be7 {[%clk 0:02:59]} 9. Bg2 {[%clk 0:03:00]}  b5 {[%clk 0:02:57]} 10. a4 {[%clk 0:02:56]}  b4 {[%clk 0:02:57]} 11. Nd5 {[%clk 0:02:57]}  a5 {[%clk 0:02:48]} 12. Nxe7 {[%clk 0:02:27]}  Qxe7 {[%clk 0:02:43]} 13. Bg5 {[%clk 0:02:27]}  Be6 {[%clk 0:02:22]} 14. O-O {[%clk 0:02:26]}  Qc7 {[%clk 0:02:22]} 15. Bxf6 {[%clk 0:02:19]}  gxf6 {[%clk 0:02:22]} 16. c3 {[%clk 0:02:19]}  Na6 {[%clk 0:02:18]} 17. f4 {[%clk 0:02:13]}  Qb6+ {[%clk 0:02:11]} 18. Kh2 {[%clk 0:02:13]}  Nc5 {[%clk 0:02:05]} 19. Ng1 {[%clk 0:02:04]}  Rd8 {[%clk 0:01:40]} 20. Qe2 {[%clk 0:02:02]}  Bb3 {[%clk 0:01:29]} 21. Nf3 {[%clk 0:01:52]}  Bxa4 {[%clk 0:01:27]} 22. Nh4 {[%clk 0:01:52]}  Bb5 {[%clk 0:01:22]} 23. c4 {[%clk 0:01:52]}  Bd7 {[%clk 0:01:21]} 24. fxe5 {[%clk 0:01:46]}  dxe5 {[%clk 0:01:21]} 25. Rad1 {[%clk 0:01:42]}  Bc8 {[%clk 0:01:16]} 26. Rd5 {[%clk 0:01:37]}  a4 {[%clk 0:01:12]} 27. Qf2 {[%clk 0:01:35]}  Rxd5 {[%clk 0:01:10]} 28. exd5 {[%clk 0:01:35]}  b3 {[%clk 0:00:56]} 29. Qd2 {[%clk 0:01:23]}  Ke7 {[%clk 0:00:54]} 30. Bf3 {[%clk 0:01:22]}  Bd7 {[%clk 0:00:50]} 31. Rd1 {[%clk 0:01:19]}  Qd6 {[%clk 0:00:42]} 32. Qe3 {[%clk 0:01:17]}  Rb8 {[%clk 0:00:39]} 33. Ra1 {[%clk 0:01:11]}  Rb4 {[%clk 0:00:37]} 34. Be2 {[%clk 0:01:08]}  Qb6 {[%clk 0:00:37]} 35. Qf3 {[%clk 0:00:48]}  a3 {[%clk 0:00:31]} 36. Rxa3 {[%clk 0:00:48]}  Ra4 {[%clk 0:00:32]} 37. Rxa4 {[%clk 0:00:44]}  Nxa4 {[%clk 0:00:33]} 38. Bd1 {[%clk 0:00:44]}  Nc5 {[%clk 0:00:28]} 39. Qe3 {[%clk 0:00:42]}  Qb4 {[%clk 0:00:26]} 40. Qe2 {[%clk 0:00:34]}  Na4 {[%clk 0:00:26]} 41. Ng2 {[%clk 0:00:32]}  Nc5 {[%clk 0:00:18]} 42. Ne3 {[%clk 0:00:30]}  Kd6 {[%clk 0:00:16]} 43. Qf2 {[%clk 0:00:26]}  Ne4 {[%clk 0:00:12]} 44. Qg2 {[%clk 0:00:21]}  Nc5 {[%clk 0:00:10]} 45. Bxh5 {[%clk 0:00:21]}  Ke7 {[%clk 0:00:07]} 46. d6+ {[%clk 0:00:16]}  Kxd6 {[%clk 0:00:04]} 47. Bxf7 {[%clk 0:00:17]}  Qa5 {[%clk 0:00:02]} 48. h4 {[%clk 0:00:16]}  Bc6 {[%clk 0:00:02]} 49. Bd5 {[%clk 0:00:16]}  Bd7 {[%clk 0:00:03]} 50. h5 {[%clk 0:00:16]}  Qd8 {[%clk 0:00:03]} 51. Qd2 {[%clk 0:00:15]}  Qh8 {[%clk 0:00:02]} 52. Bf3+ {[%clk 0:00:15]}  Ke7 {[%clk 0:00:02]} 53. Nd5+ {[%clk 0:00:16]}  Kf8 {[%clk 0:00:02]} 54. Qb4 {[%clk 0:00:16]}  Kg7 {[%clk 0:00:01]} 55. Qxc5 {[%clk 0:00:16]} 1-0


[Site "https://www.chess.com"]

[Event "Titled Tuesday Blitz July 13 2021"]
[White "Novikov, Evgenij"]
[Black "Samsonkin, Artiom"]
[WhiteFideId "4125380"]
[BlackFideId "13503111"]
[WhiteElo "2242"]
[BlackElo "2513"]
[Result "1-0"]
[Round "11"]
[TimeControl "180+1"]
[Date "2021.07.13"]
[WhiteClock "0:00:28"]
[BlackClock "0:00:09"]

1. d4 {[%clk 0:03:00]}  Nf6 {[%clk 0:02:58]} 2. Bf4 {[%clk 0:02:59]}  e6 {[%clk 0:02:58]} 3. e3 {[%clk 0:02:59]}  c5 {[%clk 0:02:57]} 4. c3 {[%clk 0:02:59]}  d5 {[%clk 0:02:58]} 5. Nd2 {[%clk 0:02:59]}  Nc6 {[%clk 0:02:58]} 6. Ngf3 {[%clk 0:02:53]}  cxd4 {[%clk 0:02:59]} 7. exd4 {[%clk 0:02:53]}  Nh5 {[%clk 0:02:59]} 8. Be3 {[%clk 0:02:47]}  Bd6 {[%clk 0:02:59]} 9. Bd3 {[%clk 0:02:38]}  Nf4 {[%clk 0:02:57]} 10. Bxf4 {[%clk 0:02:38]}  Bxf4 {[%clk 0:02:58]} 11. O-O {[%clk 0:02:38]}  O-O {[%clk 0:02:58]} 12. Re1 {[%clk 0:02:32]}  g6 {[%clk 0:02:55]} 13. Qe2 {[%clk 0:02:26]}  Bh6 {[%clk 0:02:54]} 14. Ne5 {[%clk 0:02:14]}  Nxe5 {[%clk 0:02:50]} 15. dxe5 {[%clk 0:02:15]}  f6 {[%clk 0:02:16]} 16. Nf3 {[%clk 0:02:05]}  Bg7 {[%clk 0:02:07]} 17. c4 {[%clk 0:01:56]}  fxe5 {[%clk 0:01:30]} 18. Nxe5 {[%clk 0:01:54]}  Qf6 {[%clk 0:01:30]} 19. Rac1 {[%clk 0:01:40]}  d4 {[%clk 0:01:21]} 20. c5 {[%clk 0:01:33]}  Qg5 {[%clk 0:00:53]} 21. g3 {[%clk 0:01:28]}  Bxe5 {[%clk 0:00:38]} 22. Qxe5 {[%clk 0:01:28]}  Qxe5 {[%clk 0:00:31]} 23. Rxe5 {[%clk 0:01:29]}  Bd7 {[%clk 0:00:32]} 24. Re4 {[%clk 0:01:22]}  Bc6 {[%clk 0:00:29]} 25. Rxe6 {[%clk 0:01:17]}  Rad8 {[%clk 0:00:25]} 26. f4 {[%clk 0:01:09]}  Kg7 {[%clk 0:00:24]} 27. a3 {[%clk 0:01:06]}  g5 {[%clk 0:00:12]} 28. f5 {[%clk 0:01:05]}  Bd7 {[%clk 0:00:11]} 29. Re5 {[%clk 0:01:01]}  Kf6 {[%clk 0:00:11]} 30. Rce1 {[%clk 0:01:01]}  Rde8 {[%clk 0:00:11]} 31. Rxe8 {[%clk 0:01:00]}  Rxe8 {[%clk 0:00:12]} 32. Rxe8 {[%clk 0:00:59]}  Bxe8 {[%clk 0:00:13]} 33. Be4 {[%clk 0:00:45]}  Ke5 {[%clk 0:00:09]} 34. Bxb7 {[%clk 0:00:43]}  d3 {[%clk 0:00:07]} 35. Kf2 {[%clk 0:00:42]}  Kd4 {[%clk 0:00:07]} 36. c6 {[%clk 0:00:33]}  Bh5 {[%clk 0:00:08]} 37. c7 {[%clk 0:00:31]}  d2 {[%clk 0:00:08]} 38. c8=Q {[%clk 0:00:29]}  d1=Q {[%clk 0:00:09]} 39. Qc3# {[%clk 0:00:28]} 1-0


[Site "https://www.chess.com"]